Cogmind - Beta 11.1 @@@ ROGUE MODE // 2022.06.06 @ 19:50:54 Player: Kisscool Result: Smashed by cave-in Performance ------------- Evolutions (1) 500 Regions Visited (3) 600 Robots Destroyed (10) 50 Value Destroyed (176) 176 Prototype IDs (0) 0 Alien Tech Used (0) 0 Bonus (0) 0 TOTAL SCORE: 1326 Bonus ------- None Cogmind --------- Core Integrity 0/400 Matter 232/300 Energy 100/100 System Corruption 27% Temperature Cool (0) Movement Core (50) Location -9/Materials Parts ------- > --- POWER (1) -------- (None) > --- PROPULSION (4) --- (None) > --- UTILITY (2) ------ (None) > --- WEAPON (2) ------- (None) > --- INVENTORY (5) ---- Light Ion Engine Heat Sink Small Storage Unit Peak State ------------ > --- POWER ------------ Light Ion Engine > --- PROPULSION ------- Flight Unit Flight Unit > --- UTILITY ---------- Heat Sink Signal Interpreter > --- WEAPON ----------- Medium Laser Small Laser > --- INVENTORY -------- Light Ion Engine Flight Unit Small Storage Unit Small Laser Mining Laser [Rating: 7] Favorites ----------- Power Light Ion Engine Engine Light Ion Engine Propulsion Flight Unit Wheel Wheel Flight Unit Flight Unit Utility Targeting Computer Device Heat Sink Storage Small Storage Unit Processor Targeting Computer Weapon Small Laser Energy Gun Small Laser Ballistic Gun Light Assault Rifle Special Weapon Mining Laser Build | -11 -10 -10 -9 ------- Run | Scr Mat Min Mat Slots Evolved 2 | . . . 2 Power . | . . . . Propulsion 2 | . . . 2 Utility . | . . . . Weapon . | . . . . Parts Attached 31 | 7 5 12 7 Power 2 | 1 1 . . Engine 2 | 1 1 . . Core . | . . . . Reactor . | . . . . Propulsion 5 | 2 2 1 . Treads . | . . . . Leg . | . . . . Wheel 2 | 2 . . . Hover . | . . . . Flight 3 | . 2 1 . Utility 7 | 1 2 4 . Device 3 | . 2 1 . Storage 1 | 1 . . . Processor 3 | . . 3 . Hackware . | . . . . Protection . | . . . . Artifact . | . . . . Weapon 17 | 3 . 7 7 Energy Gun 10 | 2 . 4 4 Energy Cannon . | . . . . Ballistic Gun 1 | 1 . . . Ballistic Cannon . | . . . . Launcher . | . . . . Special Weapon 6 | . . 3 3 Impact Weapon . | . . . . Slashing Weapon . | . . . . Piercing Weapon . | . . . . Special Melee Weapon . | . . . . Unidentified Prototypes . | . . . . Parts Lost 11 | . . 4 7 Power 1 | . . . 1 Propulsion 3 | . . 2 1 Utility 4 | . . 2 2 Weapon 3 | . . . 3 Highest Loss Streak 7 | . . 3 7 To Critical Strikes . | . . . . Average Slot Usage (%) 55 | . 83 79 24 Engine 9 | . 14 14 4 Wheel 1 | . 5 . . Flight 13 | . 22 21 4 Device 4 | . 9 8 . Processor 7 | . . 12 9 Energy Gun 14 | . 28 18 3 Special Weapon 2 | . . 3 2 Naked Turns 126 | . . . 126 Heaviest Build 13 | 13 13 7 4 Greatest Support 26 | 26 26 8 4 Greatest Overweight (x) 1 | . . . 1 Average Overweight (x) . | . . . . Largest Inventory Capacity 8 | 8 8 5 5 Average Capacity 5 | 6 5 5 5 Most Carried 8 | 6 8 5 5 Average Carried 4 | 3 4 4 3 Final Capacity 8 | 8 5 5 5 Final Carried 6 | 6 5 5 3 Class Distribution -------------------- 92% | Mutant 7% | Scavenger-Mutant Dominant Class ---------------- Mutant | -10/Materials Mutant | -10/Mines Mutant | -9/Materials Resources | -11 -10 -10 -9 ----------- Run | Scr Mat Min Mat Matter Collected 395 | 201 119 75 . Remotely . | . . . . Salvage Created 235 | . 203 32 . Parts 21 | . 19 2 . Haulers Intercepted . | . . . . Recyclers Shooed 1 | . 1 . . Parts Field Recycled . | . . . . Retrieved Matter . | . . . . Parts Self-Destructed . | . . . . Prevented . | . . . . Kills | -11 -10 -10 -9 ------- Run | Scr Mat Min Mat Combat Hostiles Destroyed 9 | . 6 3 . Guns 9 | . 6 3 . Classes Destroyed 3 | . 3 . . Worker 1 | . 1 . . Swarmer 6 | . 3 3 . Grunt 3 | . 3 . . Best Kill Streak 4 | . 4 2 . Combat Bots Only 3 | . 3 2 . Max Kills in Single Turn 1 | . 1 1 . Gunslinging . | . . . . Exploded . | . . . . Melee . | . . . . Uniques/NPCs Destroyed . | . . . . Combat | -11 -10 -10 -9 -------- Run | Scr Mat Min Mat Damage Taken 942 | . 130 129 683 Core 491 | . 13 56 422 Absorbed by Shields . | . . . . Core Remaining (%) 86 | 100 . 72 . Volleys Fired 48 | . 22 16 10 Largest 2 | . 2 2 2 Hottest 100 | . 90 100 100 Shots Fired 81 | . 44 26 11 Gun 66 | . 44 20 2 Cannon . | . . . . Launcher . | . . . . Special 15 | . . 6 9 Kinetic . | . . . . Thermal 81 | . 44 26 11 Explosive . | . . . . Electromagnetic . | . . . . Robot Hit Streak 8 | . 8 2 . Robot Miss Streak 7 | . 7 4 . Penetration Max . | . . . . Secondary Targets . | . . . . Shots Hit Robots 29 | . 23 6 . Core Hits 15 | . 12 3 . Critical Kills . | . . . . Critical Parts Destroyed . | . . . . Critical Strikes . | . . . . Melee Attacks . | . . . . Impact . | . . . . Slashing . | . . . . Piercing . | . . . . Sneak Attacks . | . . . . Combat Hostiles . | . . . . Follow-up Attacks . | . . . . Damage Inflicted 436 | . 291 67 78 Guns 358 | . 291 67 . Cannons . | . . . . Explosions . | . . . . Melee . | . . . . Ramming 78 | . . . 78 Kinetic . | . . . . Thermal 358 | . 291 67 . Explosive . | . . . . Electromagnetic . | . . . . Impact . | . . . . Slashing . | . . . . Piercing . | . . . . Highest Corruption 27 | . . 4 27 Average Corruption 17 | . . 4 22 Corruption Purged . | . . . . Corruption Blocked . | . . . . Effects 10 | . . 2 8 Message Errors 3 | . . . 3 Matter Fused 1 | . . . 1 Heat Flow Errors 1 | . . . 1 Energy Discharges 2 | . . . 2 Data Loss (minor) 1 | . . 1 . Alerts 2 | . . 1 1 Overload Shots . | . . . . Overflow Damage . | . . . . Projectiles . | . . . . Explosions . | . . . . Melee . | . . . . Knockbacks . | . . . . Impact . | . . . . Kinetic . | . . . . Secondary . | . . . . Self-Inflicted Damage 78 | . . . 78 Shots . | . . . . Rammed . | . . . . Targets Rammed . | . . . . Kicked . | . . . . Crushed . | . . . . Highest Temperature 296 | . 120 296 206 Average Temperature 70 | . 45 118 27 Received Heat Transfer 60 | . 60 . . Siege Activations . | . . . . Robots Corrupted . | . . . . Combat Hostiles . | . . . . Parts Fried . | . . . . Impact Corruptions . | . . . . Robots Melted . | . . . . Combat Hostiles . | . . . . Parts Melted 1 | . . 1 . Heat Transferred 955 | . 781 174 . Parts Sabotaged . | . . . . Parts Stolen . | . . . . Parts Stripped . | . . . . Power Chain Reactions . | . . . . Missiles Intercepted . | . . . . Alert | -11 -10 -10 -9 ------- Run | Scr Mat Min Mat Peak Influence 189 | . 189 160 111 Initial 73 | . . 73 62 Average 83 | . 111 124 61 Maximum Alert Level . | . . . . Low Security (%) 100 | 100 100 100 100 Level 1 . | . . . . Level 2 . | . . . . Level 3 . | . . . . Level 4 . | . . . . Level 5 . | . . . . High Security . | . . . . Max Security . | . . . . Squads Dispatched 1 | . . . 1 Investigation 1 | . . . 1 Extermination . | . . . . Reinforcement . | . . . . Assault . | . . . . Garrison . | . . . . Intercept . | . . . . Searches Triggered . | . . . . Construction Impeded . | . . . . Haulers Reinforced . | . . . . Active Scanning Responses . | . . . . Cargo Convoy Interrupts . | . . . . Stealth | -11 -10 -10 -9 --------- Run | Scr Mat Min Mat Distress Signals 1 | . 1 . . Communications Jammed . | . . . . Distress Signals . | . . . . Times Spotted 15 | . 10 4 1 Peak Tracking Total 5 | . 5 3 1 Tactical Retreats 1 | . . 1 . Traps | -11 -10 -10 -9 ------- Run | Scr Mat Min Mat Traps Triggered . | . . . . Indirectly . | . . . . Trap Hack Attempts . | . . . . Triggered . | . . . . Disarmed . | . . . . Reprogrammed . | . . . . Reused . | . . . . Traps Extracted . | . . . . Installed . | . . . . Triggered . | . . . . Machines | -11 -10 -10 -9 ---------- Run | Scr Mat Min Mat Machines Disabled 1 | . 1 . . Max in Single Turn 1 | . 1 . . Machines Sabotaged . | . . . . Garrisons Compromised . | . . . . Overloaded Fab Kills . | . . . . Hacking | -11 -10 -10 -9 --------- Run | Scr Mat Min Mat Machines Accessed 3 | . 1 . 2 Terminals 3 | . 1 . 2 Fabricators . | . . . . Repair Stations . | . . . . Recycling Units . | . . . . Scanalyzers . | . . . . Garrison Access . | . . . . Total Hacks 9 | . 2 . 7 Successful 6 | . 1 . 5 Failed 3 | . 1 . 2 Catastrophic . | . . . . Database Lockouts . | . . . . Manual . | . . . . Terminals 9 | . 2 . 7 Fabricators . | . . . . Repair Stations . | . . . . Recycling Units . | . . . . Scanalyzers . | . . . . Garrison Access . | . . . . Terminal Hacks 6 | . 1 . 5 Record 2 | . . . 2 Alert Level 1 | . . . 1 Dispatch Records 1 | . . . 1 Hauler Manifests 1 | . 1 . . Zone Layout 1 | . . . 1 Fabricator Hacks . | . . . . Repair Station Hacks . | . . . . Recycling Unit Hacks . | . . . . Scanalyzer . | . . . . Garrison Access Hacks . | . . . . Unauthorized Hacks . | . . . . Terminals . | . . . . Fabricators . | . . . . Repair Stations . | . . . . Recycling Units . | . . . . Scanalyzers . | . . . . Garrison Access . | . . . . Data Cores Recovered . | . . . . Used . | . . . . Hacking Detections 3 | . 1 . 2 Full Trace Events 2 | . . . 2 Feedback Events . | . . . . Feedback Blocked . | . . . . Robot Schematics Acquired . | . . . . Robots Built . | . . . . Authchips . | . . . . Time . | . . . . Total Robot Build Rating . | . . . . Part Schematics Acquired . | . . . . Parts Built . | . . . . Authchips . | . . . . Time . | . . . . Total Part Build Rating . | . . . . Parts Repaired . | . . . . Time . | . . . . Parts Recycled . | . . . . Recycled Matter . | . . . . Retrieved Matter . | . . . . Retrieved Components . | . . . . Parts Scanalyzed . | . . . . Part Schematics Acquired . | . . . . Parts Damaged . | . . . . Bothacking | -11 -10 -10 -9 ------------ Run | Scr Mat Min Mat Used RIF Installer . | . . . . Robots Hacked . | . . . . Non-combat . | . . . . Combat . | . . . . Robot Hacks Applied . | . . . . Relay Couplers Released . | . . . . Fabnet Peak Effective % . | . . . . Robots Rewired . | . . . . Allies Hacked . | . . . . Hacks Repelled . | . . . . Allies | -11 -10 -10 -9 -------- Run | Scr Mat Min Mat Total Allies . | . . . . Largest Group . | . . . . Highest-Rated Group . | . . . . Highest-Rated Ally . | . . . . Total Orders . | . . . . Ally Attacks . | . . . . Total Damage . | . . . . Kills . | . . . . Allies Corrupted . | . . . . Allies Melted . | . . . . Intel | -11 -10 -10 -9 ------- Run | Scr Mat Min Mat Robot Analysis Total . | . . . . Derelict Logs Recovered 1 | . . 1 . Drone Launches . | . . . . Drone Recoveries . | . . . . Exploration | -11 -10 -10 -9 ------------- Run | Scr Mat Min Mat Turns Passed 621 | 59 150 152 260 Spaces Moved 511 | 46 110 197 158 Core 5 | 2 . . 3 Treads . | . . . . Legs . | . . . . Wheels 57 | 44 13 . . Hover . | . . . . Flight 449 | . 97 197 155 Fastest Speed 37 | 50 37 37 40 Average Speed 44 | 87 43 38 41 Slowest Speed 100 | 90 90 40 100 Overloaded Moves . | . . . . Propulsion Burnouts . | . . . . Robots Hopped 3 | . . 2 1 Cave-ins Triggered 9 | . . 1 8 Exploration Rate (%) 21 | 4 24 44 15 Regions Visited 3 Branch Regions 1 Pre-discovered Areas . | . . . . Known Exits Taken . | . . . . Unknown Exits Taken 3 | 1 1 1 . Scrap Searched 2 | . . 2 . Spaces Dug 14 | . . 5 9 Terrain Destroyed 15 | . . 6 9 Melee . | . . . . Projectile 15 | . . 6 9 AOE . | . . . . Terrain Rammed 13 | . . . 13 Walls Destroyed . | . . . . Machines Disabled . | . . . . Actions | -11 -10 -10 -9 --------- Run | Scr Mat Min Mat Total 784 | 63 171 228 322 Wait 151 | . 15 2 134 Move 501 | 45 109 192 155 Hop 3 | . . 2 1 Pick Up 21 | 11 9 1 . Fast Attach 4 | 1 . 3 . Attach 12 | 5 2 2 3 Detach 4 | . 1 2 1 Swap 15 | 1 3 7 4 Drop 11 | . 10 1 . Fire 48 | . 22 16 10 Melee . | . . . . Ram 13 | . . . 13 Kick . | . . . . Crush . | . . . . Escape Stasis 1 | . . . 1 Rewire . | . . . . Trap . | . . . . Miscellaneous . | . . . . Route ------- -11/Scrapyard -10/Materials -10/Mines -9/Materials History --------- Turn | Location | Event 11 | -11/Scrapyard | Discovered new exit (range 15) 60 | -11/Scrapyard | Entered Materials 134 | -10/Materials | Discovered new exit (range 6) 210 | -10/Materials | Entered Mines 223 | -10/Mines | Learned Materials machine intel 248 | -10/Mines | Discovered new exit (range 8) 273 | -10/Mines | Found a hidden stash of uninstalled traps 305 | -10/Mines | Crushed by falling debris 326 | -10/Mines | Joined a pair of Derelicts in attacking an 0b10 outpost 336 | -10/Mines | Lost 3 parts (1n2u) 362 | -10/Mines | Entered Materials 362 | -9/Materials | Evolved 2 slots: Propulsion x2 363 | -9/Materials | Loaded intel: 56 machine locations 460 | -9/Materials | Crushed by falling debris 472 | -9/Materials | Crushed by falling debris 475 | -9/Materials | Crushed by falling debris 477 | -9/Materials | Crushed by falling debris 483 | -9/Materials | System corruption reached 10% 488 | -9/Materials | Core integrity fell below 50% 497 | -9/Materials | Crushed by falling debris 501 | -9/Materials | Crushed by falling debris 502 | -9/Materials | Crushed by falling debris 502 | -9/Materials | Core integrity fell below 20% 528 | -9/Materials | Lost 7 parts (1p1n2u3w) 572 | -9/Materials | Build established: Mutant 623 | -9/Materials | Crushed by falling debris 623 | -9/Materials | Smashed by cave-in Last Messages --------------- 00491_ Destabilizing: System corrupted (+1). 00496_ System corrupted: Heat flow error (+234). 00497_ The unstable cave ceiling collapses. 00497_ Crushed by falling debris. 00497_ Broken Sml. Laser destroyed. 00497_ System corrupted by crushing effect (+4). 00497_ Broken Med. Laser destroyed. 00497_ System corrupted by crushing effect (+4). 00501_ The unstable cave ceiling collapses. 00501_ Crushed by falling debris. 00502_ The unstable cave ceiling collapses. 00502_ Crushed by falling debris. 00514_ DKMDYB0ZW36EHYRE3HWZ 00530_ X=JMOSCA1YCAQORV< FYCRPPQMZ92NN#KKRQRR 00560_ System corrupted: Energy discharge (-37). 00576_ System corrupted: Matter fused (-8). 00610_ System corrupted: IFF burst signal emitted. 00623_ The unstable cave ceiling collapses. 00623_ Crushed by falling debris. Map ----- +----------------------------------------------------+ | ????????????????????????????????????????????????? | | ????????????????????????????????????????????????? | | ????????????????????????????????????????????????? | | ????????????????????????????????????????????????? | | ????????????????????????????????????????????????? | | ????????????????????????????????????????????????? | | ?"??????????????????????????????????????????????? | | ?"??????????????????????????????????????????????? | | ""???"""????????????????????????????????????????? | | ?????"""???"""??""??????????????????????????????? | | ?????"""???"""??"""????????????????????????"""??? | | ???????????"""???S"????????????????????????"""??? | | ???????????????????????????????????????????"""??? | | ????????????????????????????????????????????????? | | ????????????????????????????????????????????????? | | ????????????????????????????????????????????????? | | ????????????????????????????????????????????????? | | ????????????????????????????????????????????????? | | ????############????????????????????????????????? | | ????# ####??###????????????????????????? | | ##### ##"####"##???????????????????"""?? | | !! # #???????????????????"""?? | | !! # """"" #????????????T??????"""?? | | # """"" #???????????????????????? | | ##+### # """"" #####?????????????"?"???? | | "" ? ?# + """"" #@# #?????????????"R"???? | | "" # # # """"" #####?????????????"""???? | | "" # # #! """"" #???????????????????????? | | # # # """"" #???????????????????????? | | + # # #???????????????????????? | | # # ##########???????????????????????? | | # # #????????????????????????????????? | | """ + # #????????????????????????????????? | | """" # # #????????????????????????????????? | | """" ###### #????????????????????????????????? | | """" #????# #????????????????????????????????? | | """ #????# #?#####??????????????????????????? | | ###### ### ??????????????????????????? | | + "" ???"""????????????????????? | | ##########"###### "Y ???"""????????????????????? | | #??# # ## "" ???"""????????????????????? | | #??# T """ # ## ??????????????????????????? | | ##??# """ # ####+###+######?????????????????? | | ????#! """ # #??# #?????????????????? | | ????# # #### #?????????????????? | | ????####+#### # #?????????????????? | | ###### ## # ######+######?????????????????? | | ###+## ## #??????????????????? | | T ## / #??????????????????? | | ### ## #??????????????????? | +----------------------------------------------------+ Best States ------------- Heat Dissipation 35 Energy Generation 10 Energy Capacity 250 Matter Stores 300 Matter Capacity 300 Sight Range 16 Robot Scan Range 14 Terrain Scan Density 10 Evasion (%) 62 Targeting Accuracy 10 Item Schematics ----------------- None Robot Schematics ------------------ None Fabricated ------------ Nothing Alien Tech Used ----------------- None Achievements -------------- Unlikely Earthworm Challenges ------------ None Game ------ Seed MatterDiametricAccelerator Manual? 0 Play Time 00:25:14 Cumulative 8.7 hours Start 2022.06.06 @ 19:22:37 End 2022.06.06 @ 19:50:54 Sessions 1 Manual Loads 0 Difficulty Rogue Special Mode None Game No. 3 Rogue 3 Adventurer 0 Explorer 0 Win Type - Total 0 Types 0/0/0/0/0/0/0/0/0 Lore% 6 Gallery% 9 Achievement% 14 Wizard Run 0 Options --------- ASCII 0 Keyboard 0 Movement Numpad Keybinds 0 Fullscreen 2 Font 18/Terminus Map View 76x50 Tactical HUD 1 Map Filters NONE Filters NONE Steam 1 RUN: cf95ae27-ea20-4fa1-ac0e-956c7e3aa77d